[Event "Titled Tuesday Blitz April 11 Early 2023"]
[White "Aradhya, Garg"]
[Black "Kumala, Aleksander"]
[WhiteFideId "25006746"]
[BlackFideId "1141880"]
[WhiteElo "2263"]
[BlackElo "2269"]
[Result "0-1"]
[Round "04"]
[TimeControl "180+2"]
[Date "2023.04.11"]
[WhiteClock "0:00:55"]
[BlackClock "0:00:25"]

1. d4 {[%clk 0:03:00]}  Nf6 {[%clk 0:02:58]} 2. c4 {[%clk 0:03:00]}  Nc6 {[%clk 0:02:57]} 3. Nf3 {[%clk 0:02:57]}  e6 {[%clk 0:02:57]} 4. a3 {[%clk 0:02:58]}  g6 {[%clk 0:02:56]} 5. Nc3 {[%clk 0:02:58]}  Bg7 {[%clk 0:02:56]} 6. e4 {[%clk 0:02:58]}  d6 {[%clk 0:02:55]} 7. Be2 {[%clk 0:02:58]}  O-O {[%clk 0:02:55]} 8. O-O {[%clk 0:02:59]}  Re8 {[%clk 0:02:48]} 9. d5 {[%clk 0:02:47]}  exd5 {[%clk 0:02:47]} 10. cxd5 {[%clk 0:02:46]}  Ne5 {[%clk 0:02:42]} 11. Nxe5 {[%clk 0:02:45]}  Rxe5 {[%clk 0:02:42]} 12. Bf4 {[%clk 0:02:45]}  Re8 {[%clk 0:02:38]} 13. Qc2 {[%clk 0:02:44]}  Nd7 {[%clk 0:02:18]} 14. Rac1 {[%clk 0:02:42]}  Ne5 {[%clk 0:02:12]} 15. Rfd1 {[%clk 0:02:38]}  a6 {[%clk 0:02:00]} 16. Na2 {[%clk 0:02:24]}  Re7 {[%clk 0:02:00]} 17. Bg5 {[%clk 0:02:23]}  f6 {[%clk 0:02:00]} 18. Bh4 {[%clk 0:02:23]}  h5 {[%clk 0:01:55]} 19. Nb4 {[%clk 0:02:18]}  Kf7 {[%clk 0:01:43]} 20. h3 {[%clk 0:02:16]}  g5 {[%clk 0:01:21]} 21. Bxh5+ {[%clk 0:02:14]}  Kg8 {[%clk 0:01:22]} 22. Bg3 {[%clk 0:02:14]}  Nf7 {[%clk 0:01:21]} 23. Bf3 {[%clk 0:02:04]}  Bh6 {[%clk 0:01:21]} 24. Rb1 {[%clk 0:02:03]}  Kg7 {[%clk 0:01:21]} 25. a4 {[%clk 0:02:01]}  Qh8 {[%clk 0:01:19]} 26. a5 {[%clk 0:02:00]}  Ne5 {[%clk 0:01:13]} 27. Be2 {[%clk 0:02:00]}  g4 {[%clk 0:01:13]} 28. hxg4 {[%clk 0:01:57]}  Nxg4 {[%clk 0:01:09]} 29. Nd3 {[%clk 0:01:54]}  Kf7 {[%clk 0:01:00]} 30. Nf4 {[%clk 0:01:53]}  Bxf4 {[%clk 0:00:44]} 31. Bxf4 {[%clk 0:01:54]}  Qh4 {[%clk 0:00:39]} 32. Bg3 {[%clk 0:01:52]}  Qg5 {[%clk 0:00:38]} 33. Qc1 {[%clk 0:01:51]}  Qg6 {[%clk 0:00:37]} 34. f3 {[%clk 0:01:35]}  Ne5 {[%clk 0:00:36]} 35. Kf2 {[%clk 0:01:35]}  Bd7 {[%clk 0:00:34]} 36. Rh1 {[%clk 0:01:34]}  Rg8 {[%clk 0:00:34]} 37. Qf4 {[%clk 0:01:34]}  Bb5 {[%clk 0:00:31]} 38. Bxb5 {[%clk 0:01:16]}  axb5 {[%clk 0:00:32]} 39. Rbd1 {[%clk 0:01:17]}  c6 {[%clk 0:00:32]} 40. dxc6 {[%clk 0:01:16]}  bxc6 {[%clk 0:00:33]} 41. Rxd6 {[%clk 0:01:17]}  Re6 {[%clk 0:00:31]} 42. Rxe6 {[%clk 0:01:04]}  Nd3+ {[%clk 0:00:31]} 43. Ke3 {[%clk 0:01:00]}  Nxf4 {[%clk 0:00:31]} 44. Rxc6 {[%clk 0:00:58]}  Qxg3 {[%clk 0:00:29]} 45. Rh7+ {[%clk 0:00:58]}  Kg6 {[%clk 0:00:27]} 46. Rh1 {[%clk 0:00:58]}  Rd8 {[%clk 0:00:25]} 47. Rc3 {[%clk 0:00:55]}  b4 {[%clk 0:00:26]} 48. Rb3 {[%clk 0:00:55]}  Qxg2 {[%clk 0:00:25]} 0-1


[Site "https://www.chess.com"]

[Event "Titled Tuesday Blitz April 11 Early 2023"]
[White "Arpita, Mukherjee"]
[Black "Csonka, Balazs"]
[WhiteFideId "5056403"]
[BlackFideId "742910"]
[WhiteElo "2129"]
[BlackElo "2404"]
[Result "0-1"]
[Round "04"]
[TimeControl "180+2"]
[Date "2023.04.11"]
[WhiteClock "0:00:56"]
[BlackClock "0:00:27"]

1. e4 {[%clk 0:03:00]}  c5 {[%clk 0:02:56]} 2. Nf3 {[%clk 0:03:00]}  e6 {[%clk 0:02:56]} 3. d4 {[%clk 0:02:58]}  cxd4 {[%clk 0:02:56]} 4. Nxd4 {[%clk 0:02:59]}  a6 {[%clk 0:02:57]} 5. Bd3 {[%clk 0:02:58]}  Bc5 {[%clk 0:02:54]} 6. Nb3 {[%clk 0:02:57]}  Be7 {[%clk 0:02:54]} 7. Qg4 {[%clk 0:02:55]}  g6 {[%clk 0:02:46]} 8. Nc3 {[%clk 0:02:54]}  d6 {[%clk 0:02:40]} 9. Be3 {[%clk 0:02:51]}  Nd7 {[%clk 0:02:38]} 10. O-O {[%clk 0:02:47]}  Ngf6 {[%clk 0:02:27]} 11. Qe2 {[%clk 0:02:47]}  O-O {[%clk 0:02:26]} 12. a4 {[%clk 0:02:47]}  b6 {[%clk 0:02:25]} 13. f4 {[%clk 0:02:46]}  Bb7 {[%clk 0:02:22]} 14. Bd4 {[%clk 0:02:41]}  Qc7 {[%clk 0:02:09]} 15. f5 {[%clk 0:02:39]}  gxf5 {[%clk 0:01:39]} 16. exf5 {[%clk 0:02:37]}  e5 {[%clk 0:01:39]} 17. Be3 {[%clk 0:02:35]}  Kh8 {[%clk 0:01:39]} 18. Bh6 {[%clk 0:02:12]}  Rg8 {[%clk 0:01:37]} 19. Ne4 {[%clk 0:02:07]}  d5 {[%clk 0:01:28]} 20. Ng5 {[%clk 0:01:59]}  Rxg5 {[%clk 0:01:09]} 21. Bxg5 {[%clk 0:01:58]}  Rg8 {[%clk 0:01:06]} 22. h4 {[%clk 0:01:53]}  d4 {[%clk 0:00:38]} 23. Nxd4 {[%clk 0:01:47]}  Bc5 {[%clk 0:00:35]} 24. c3 {[%clk 0:01:23]}  exd4 {[%clk 0:00:34]} 25. b4 {[%clk 0:01:22]}  Bd6 {[%clk 0:00:33]} 26. cxd4 {[%clk 0:01:20]}  h6 {[%clk 0:00:28]} 27. Rac1 {[%clk 0:01:13]}  Bh2+ {[%clk 0:00:28]} 28. Kh1 {[%clk 0:01:12]}  Qg3 {[%clk 0:00:29]} 29. Bf4 {[%clk 0:00:56]}  Bxg2+ {[%clk 0:00:27]} 0-1


[Site "https://www.chess.com"]

[Event "Titled Tuesday Blitz April 11 Early 2023"]
[White "koncheto"]
[Black "Korchmar, Vasiliy"]
[BlackFideId "24131750"]
[WhiteElo "2543"]
[BlackElo "2370"]
[Result "1-0"]
[Round "04"]
[TimeControl "180+2"]
[Date "2023.04.11"]
[WhiteClock "0:00:04"]
[BlackClock "0:00:02"]

1. d4 {[%clk 0:03:00]}  Nf6 {[%clk 0:02:59]} 2. Bg5 {[%clk 0:03:00]}  Ne4 {[%clk 0:02:56]} 3. h4 {[%clk 0:03:01]}  c5 {[%clk 0:02:54]} 4. dxc5 {[%clk 0:02:44]}  Qa5+ {[%clk 0:02:48]} 5. Nd2 {[%clk 0:02:43]}  Nxg5 {[%clk 0:02:45]} 6. hxg5 {[%clk 0:02:43]}  Qxc5 {[%clk 0:02:46]} 7. g6 {[%clk 0:02:40]}  fxg6 {[%clk 0:02:42]} 8. e3 {[%clk 0:02:37]}  Nc6 {[%clk 0:02:37]} 9. Ngf3 {[%clk 0:02:36]}  d6 {[%clk 0:02:34]} 10. c3 {[%clk 0:02:18]}  Be6 {[%clk 0:02:30]} 11. Bd3 {[%clk 0:02:14]}  O-O-O {[%clk 0:02:06]} 12. Bxg6 {[%clk 0:02:08]}  Ne5 {[%clk 0:02:06]} 13. Be4 {[%clk 0:01:56]}  g5 {[%clk 0:02:02]} 14. Nxg5 {[%clk 0:01:36]}  Nd3+ {[%clk 0:02:02]} 15. Bxd3 {[%clk 0:01:34]}  Qxg5 {[%clk 0:02:03]} 16. Qa4 {[%clk 0:01:30]}  Qxg2 {[%clk 0:01:58]} 17. Be4 {[%clk 0:01:27]}  Qg5 {[%clk 0:01:31]} 18. Qxa7 {[%clk 0:01:26]}  d5 {[%clk 0:01:31]} 19. Bd3 {[%clk 0:01:02]}  Qe5 {[%clk 0:01:31]} 20. O-O-O {[%clk 0:00:56]}  h5 {[%clk 0:01:28]} 21. Nf3 {[%clk 0:00:50]}  Qb8 {[%clk 0:01:27]} 22. Qd4 {[%clk 0:00:45]}  Bh6 {[%clk 0:01:27]} 23. Kb1 {[%clk 0:00:42]}  Bg4 {[%clk 0:01:27]} 24. Rxh5 {[%clk 0:00:33]}  Rdg8 {[%clk 0:00:43]} 25. Rxd5 {[%clk 0:00:26]}  Qc7 {[%clk 0:00:17]} 26. Rc5 {[%clk 0:00:18]}  Bxf3 {[%clk 0:00:17]} 27. Bf5+ {[%clk 0:00:13]}  Kb8 {[%clk 0:00:17]} 28. Rxc7 {[%clk 0:00:13]}  Kxc7 {[%clk 0:00:12]} 29. Qc5+ {[%clk 0:00:10]}  Kb8 {[%clk 0:00:12]} 30. Rd7 {[%clk 0:00:08]}  Bc6 {[%clk 0:00:10]} 31. Rxe7 {[%clk 0:00:07]}  Bf8 {[%clk 0:00:08]} 32. Qe5+ {[%clk 0:00:05]}  Ka7 {[%clk 0:00:06]} 33. Rf7 {[%clk 0:00:05]}  Rh1+ {[%clk 0:00:04]} 34. Kc2 {[%clk 0:00:05]}  Bh6 {[%clk 0:00:02]} 35. Be4 {[%clk 0:00:04]}  Ba4+ {[%clk 0:00:02]} 36. b3 {[%clk 0:00:04]}  Ra1 {[%clk 0:00:02]} 37. Qa5+ {[%clk 0:00:03]}  Kb8 {[%clk 0:00:02]} 38. Qc7+ {[%clk 0:00:04]} 1-0


[Site "https://www.chess.com"]

[Event "Titled Tuesday Blitz April 11 Early 2023"]
[White "Omelja, Artem"]
[Black "Bocharov, Dmitry"]
[WhiteFideId "14119846"]
[BlackFideId "4138716"]
[WhiteElo "2404"]
[BlackElo "2469"]
[Result "1/2-1/2"]
[Round "04"]
[TimeControl "180+2"]
[Date "2023.04.11"]
[WhiteClock "0:00:13"]
[BlackClock "0:00:28"]

1. e4 {[%clk 0:02:51]}  c5 {[%clk 0:02:58]} 2. Nf3 {[%clk 0:02:50]}  d6 {[%clk 0:02:58]} 3. Bb5+ {[%clk 0:02:50]}  Nd7 {[%clk 0:02:58]} 4. d4 {[%clk 0:02:50]}  cxd4 {[%clk 0:02:57]} 5. Qxd4 {[%clk 0:02:51]}  a6 {[%clk 0:02:57]} 6. Bxd7+ {[%clk 0:02:51]}  Bxd7 {[%clk 0:02:57]} 7. c4 {[%clk 0:02:52]}  Nf6 {[%clk 0:02:50]} 8. Nc3 {[%clk 0:02:51]}  g6 {[%clk 0:02:40]} 9. Bg5 {[%clk 0:02:36]}  Bg7 {[%clk 0:02:39]} 10. O-O {[%clk 0:02:35]}  h6 {[%clk 0:02:37]} 11. Bh4 {[%clk 0:02:32]}  Rc8 {[%clk 0:02:28]} 12. Qd3 {[%clk 0:02:30]}  O-O {[%clk 0:02:21]} 13. Rac1 {[%clk 0:02:29]}  g5 {[%clk 0:02:12]} 14. Bg3 {[%clk 0:02:27]}  Nh5 {[%clk 0:02:13]} 15. Rfd1 {[%clk 0:02:25]}  Be6 {[%clk 0:02:02]} 16. b3 {[%clk 0:02:23]}  Nxg3 {[%clk 0:01:55]} 17. hxg3 {[%clk 0:02:21]}  Qa5 {[%clk 0:01:54]} 18. Nd4 {[%clk 0:02:19]}  Qc5 {[%clk 0:01:47]} 19. Nd5 {[%clk 0:02:16]}  Bxd5 {[%clk 0:01:44]} 20. exd5 {[%clk 0:02:15]}  Qxd4 {[%clk 0:01:36]} 21. Qxd4 {[%clk 0:02:16]}  Bxd4 {[%clk 0:01:35]} 22. Rxd4 {[%clk 0:02:17]}  b5 {[%clk 0:01:32]} 23. Re1 {[%clk 0:02:16]}  bxc4 {[%clk 0:01:31]} 24. Rxc4 {[%clk 0:02:14]}  Rxc4 {[%clk 0:01:28]} 25. bxc4 {[%clk 0:02:15]}  Re8 {[%clk 0:01:27]} 26. Kf1 {[%clk 0:02:14]}  Kf8 {[%clk 0:01:24]} 27. Rb1 {[%clk 0:02:12]}  Rc8 {[%clk 0:01:24]} 28. Rb4 {[%clk 0:02:12]}  a5 {[%clk 0:01:12]} 29. Ra4 {[%clk 0:02:11]}  Rc5 {[%clk 0:01:11]} 30. Ke2 {[%clk 0:02:11]}  e6 {[%clk 0:01:11]} 31. dxe6 {[%clk 0:02:11]}  fxe6 {[%clk 0:01:12]} 32. Kd3 {[%clk 0:02:11]}  Ke7 {[%clk 0:01:11]} 33. Ra3 {[%clk 0:02:10]}  g4 {[%clk 0:01:07]} 34. Rb3 {[%clk 0:02:08]}  d5 {[%clk 0:01:01]} 35. cxd5 {[%clk 0:02:08]}  Rxd5+ {[%clk 0:01:02]} 36. Ke3 {[%clk 0:02:07]}  h5 {[%clk 0:01:02]} 37. f3 {[%clk 0:01:59]}  Kf6 {[%clk 0:01:00]} 38. Rc3 {[%clk 0:01:55]}  Re5+ {[%clk 0:00:57]} 39. Kf2 {[%clk 0:01:48]}  Rb5 {[%clk 0:00:55]} 40. Rc2 {[%clk 0:01:47]}  Kf5 {[%clk 0:00:46]} 41. a4 {[%clk 0:01:33]}  Rd5 {[%clk 0:00:44]} 42. Rb2 {[%clk 0:01:30]}  e5 {[%clk 0:00:41]} 43. Rb8 {[%clk 0:00:31]}  Rd2+ {[%clk 0:00:39]} 44. Kf1 {[%clk 0:00:21]}  Rd4 {[%clk 0:00:37]} 45. Rb5 {[%clk 0:00:19]}  Rxa4 {[%clk 0:00:35]} 46. f4 {[%clk 0:00:19]}  Re4 {[%clk 0:00:34]} 47. Rxa5 {[%clk 0:00:19]}  Ke6 {[%clk 0:00:34]} 48. fxe5 {[%clk 0:00:13]}  Rxe5 {[%clk 0:00:32]} 49. Ra6+ {[%clk 0:00:13]}  Kf5 {[%clk 0:00:32]} 50. Kg1 {[%clk 0:00:14]}  Kg5 {[%clk 0:00:31]} 51. Kh2 {[%clk 0:00:13]}  Rf5 {[%clk 0:00:28]} 1/2-1/2


[Site "https://www.chess.com"]

[Event "Titled Tuesday Blitz April 11 Early 2023"]
[White "Tan, Zhongyi"]
[Black "Garv Gaur"]
[WhiteFideId "8603642"]
[BlackFideId "45030839"]
[WhiteElo "2519"]
[BlackElo "2068"]
[Result "1-0"]
[Round "04"]
[TimeControl "180+2"]
[Date "2023.04.11"]
[WhiteClock "0:00:36"]
[BlackClock "0:00:04"]

1. d4 {[%clk 0:03:00]}  Nf6 {[%clk 0:02:59]} 2. c4 {[%clk 0:03:00]}  e6 {[%clk 0:02:58]} 3. Nc3 {[%clk 0:03:00]}  Bb4 {[%clk 0:02:56]} 4. Nf3 {[%clk 0:02:59]}  d5 {[%clk 0:02:53]} 5. Qa4+ {[%clk 0:02:57]}  Nc6 {[%clk 0:02:53]} 6. e3 {[%clk 0:02:57]}  O-O {[%clk 0:02:50]} 7. Qc2 {[%clk 0:02:57]}  dxc4 {[%clk 0:02:48]} 8. Bxc4 {[%clk 0:02:56]}  Bd6 {[%clk 0:02:48]} 9. O-O {[%clk 0:02:55]}  e5 {[%clk 0:02:47]} 10. dxe5 {[%clk 0:02:56]}  Nxe5 {[%clk 0:02:47]} 11. Nxe5 {[%clk 0:02:55]}  Bxe5 {[%clk 0:02:48]} 12. f4 {[%clk 0:02:45]}  Bxc3 {[%clk 0:02:40]} 13. bxc3 {[%clk 0:02:44]}  Qe7 {[%clk 0:02:40]} 14. Bd3 {[%clk 0:02:39]}  Rd8 {[%clk 0:02:37]} 15. Re1 {[%clk 0:02:29]}  Nd5 {[%clk 0:02:30]} 16. Bxh7+ {[%clk 0:02:25]}  Kh8 {[%clk 0:02:28]} 17. Be4 {[%clk 0:02:21]}  Nxc3 {[%clk 0:02:17]} 18. Bf3 {[%clk 0:02:20]}  Nd5 {[%clk 0:02:13]} 19. Bb2 {[%clk 0:02:16]}  Be6 {[%clk 0:01:57]} 20. Rad1 {[%clk 0:02:15]}  f6 {[%clk 0:01:54]} 21. Qc1 {[%clk 0:01:39]}  Nb4 {[%clk 0:01:43]} 22. Be4 {[%clk 0:01:04]}  Nxa2 {[%clk 0:01:34]} 23. Qc2 {[%clk 0:01:02]}  Nb4 {[%clk 0:01:34]} 24. Qe2 {[%clk 0:01:01]}  Bf7 {[%clk 0:01:30]} 25. Bb1 {[%clk 0:00:59]}  Nd5 {[%clk 0:01:25]} 26. Qg4 {[%clk 0:00:57]}  Kg8 {[%clk 0:00:58]} 27. Qh3 {[%clk 0:00:55]}  g6 {[%clk 0:00:29]} 28. Qh4 {[%clk 0:00:51]}  Kg7 {[%clk 0:00:29]} 29. e4 {[%clk 0:00:50]}  Rh8 {[%clk 0:00:26]} 30. exd5 {[%clk 0:00:45]}  Qc5+ {[%clk 0:00:24]} 31. Qf2 {[%clk 0:00:45]}  Qxf2+ {[%clk 0:00:19]} 32. Kxf2 {[%clk 0:00:46]}  Rxh2 {[%clk 0:00:20]} 33. Re7 {[%clk 0:00:46]}  Rah8 {[%clk 0:00:10]} 34. Rxc7 {[%clk 0:00:44]}  R8h3 {[%clk 0:00:09]} 35. Ba2 {[%clk 0:00:38]}  Kf8 {[%clk 0:00:04]} 36. Bxf6 {[%clk 0:00:36]} 1-0


[Site "https://www.chess.com"]

[Event "Titled Tuesday Blitz April 11 Early 2023"]
[White "Sai Han Thiha"]
[Black "Rendle, Thomas E"]
[WhiteFideId "13012290"]
[BlackFideId "408760"]
[WhiteElo "1954"]
[BlackElo "2428"]
[Result "0-1"]
[Round "04"]
[TimeControl "180+2"]
[Date "2023.04.11"]
[WhiteClock "0:00:02"]
[BlackClock "0:00:42"]

1. d4 {[%clk 0:03:00]}  e6 {[%clk 0:03:00]} 2. c4 {[%clk 0:03:01]}  f5 {[%clk 0:03:00]} 3. Nf3 {[%clk 0:03:00]}  Nf6 {[%clk 0:03:01]} 4. Nc3 {[%clk 0:02:54]}  d5 {[%clk 0:03:00]} 5. Bf4 {[%clk 0:02:54]}  c6 {[%clk 0:02:58]} 6. e3 {[%clk 0:02:54]}  Be7 {[%clk 0:02:53]} 7. Bd3 {[%clk 0:02:54]}  O-O {[%clk 0:02:54]} 8. O-O {[%clk 0:02:53]}  Ne4 {[%clk 0:02:54]} 9. h3 {[%clk 0:02:49]}  Nd7 {[%clk 0:02:54]} 10. Rc1 {[%clk 0:02:45]}  Ndf6 {[%clk 0:02:45]} 11. Bh2 {[%clk 0:02:42]}  Bd7 {[%clk 0:02:45]} 12. Ne2 {[%clk 0:02:36]}  g5 {[%clk 0:02:39]} 13. Ne5 {[%clk 0:02:33]}  Be8 {[%clk 0:02:38]} 14. f3 {[%clk 0:02:08]}  Nd6 {[%clk 0:02:38]} 15. Qb3 {[%clk 0:02:08]}  Qb6 {[%clk 0:02:13]} 16. c5 {[%clk 0:02:00]}  Qxb3 {[%clk 0:02:13]} 17. axb3 {[%clk 0:02:01]}  Nf7 {[%clk 0:02:12]} 18. b4 {[%clk 0:01:44]}  a6 {[%clk 0:02:11]} 19. Ra1 {[%clk 0:01:34]}  Nxe5 {[%clk 0:02:10]} 20. dxe5 {[%clk 0:01:03]}  Nd7 {[%clk 0:02:11]} 21. Nd4 {[%clk 0:01:04]}  Bf7 {[%clk 0:02:09]} 22. g4 {[%clk 0:01:04]}  fxg4 {[%clk 0:02:05]} 23. fxg4 {[%clk 0:01:03]}  a5 {[%clk 0:02:01]} 24. Rxa5 {[%clk 0:00:42]}  Rxa5 {[%clk 0:02:00]} 25. bxa5 {[%clk 0:00:43]}  Nxc5 {[%clk 0:01:58]} 26. Bc2 {[%clk 0:00:43]}  Ra8 {[%clk 0:01:46]} 27. b4 {[%clk 0:00:40]}  Nd7 {[%clk 0:01:44]} 28. Bxh7+ {[%clk 0:00:27]}  Kg7 {[%clk 0:01:44]} 29. Bf5 {[%clk 0:00:21]}  Nf8 {[%clk 0:01:39]} 30. Bxe6 {[%clk 0:00:10]}  Nxe6 {[%clk 0:01:34]} 31. Nf5+ {[%clk 0:00:09]}  Kf8 {[%clk 0:01:34]} 32. Nh6 {[%clk 0:00:08]}  Bxb4 {[%clk 0:01:27]} 33. Nxf7 {[%clk 0:00:08]}  Ke7 {[%clk 0:01:22]} 34. Nd6 {[%clk 0:00:09]}  Nd8 {[%clk 0:01:17]} 35. Rf5 {[%clk 0:00:07]}  Rxa5 {[%clk 0:01:13]} 36. Rxg5 {[%clk 0:00:08]}  Ra1+ {[%clk 0:01:14]} 37. Kg2 {[%clk 0:00:08]}  Ra2+ {[%clk 0:01:15]} 38. Kg3 {[%clk 0:00:08]}  Be1+ {[%clk 0:01:14]} 39. Kf4 {[%clk 0:00:07]}  Ne6+ {[%clk 0:01:10]} 40. Kf5 {[%clk 0:00:03]}  Nxg5 {[%clk 0:01:10]} 41. Bf4 {[%clk 0:00:03]}  Nxh3 {[%clk 0:01:09]} 42. g5 {[%clk 0:00:03]}  Rf2 {[%clk 0:01:05]} 43. Nxb7 {[%clk 0:00:03]}  d4 {[%clk 0:01:04]} 44. Ke4 {[%clk 0:00:01]}  dxe3 {[%clk 0:00:55]} 45. Bxe3 {[%clk 0:00:01]}  Rg2 {[%clk 0:00:52]} 46. Nd6 {[%clk 0:00:02]}  Nxg5+ {[%clk 0:00:51]} 47. Kf4 {[%clk 0:00:02]}  Ne6+ {[%clk 0:00:50]} 48. Kf3 {[%clk 0:00:02]}  Ra2 {[%clk 0:00:50]} 49. Nf5+ {[%clk 0:00:03]}  Kd7 {[%clk 0:00:50]} 50. Nd6 {[%clk 0:00:03]}  Bd2 {[%clk 0:00:50]} 51. Ke4 {[%clk 0:00:04]}  Bxe3 {[%clk 0:00:49]} 52. Kxe3 {[%clk 0:00:05]}  Ra5 {[%clk 0:00:49]} 53. Ke4 {[%clk 0:00:06]}  Ra4+ {[%clk 0:00:47]} 54. Kf5 {[%clk 0:00:06]}  Rf4+ {[%clk 0:00:46]} 55. Kg6 {[%clk 0:00:06]}  Nd4 {[%clk 0:00:45]} 56. Kg5 {[%clk 0:00:03]}  Rf1 {[%clk 0:00:45]} 57. Ne4 {[%clk 0:00:01]}  Ke6 {[%clk 0:00:43]} 58. Nc5+ {[%clk 0:00:01]}  Kxe5 {[%clk 0:00:43]} 59. Nd3+ {[%clk 0:00:02]}  Kd5 {[%clk 0:00:43]} 60. Nb4+ {[%clk 0:00:01]}  Kc4 {[%clk 0:00:42]} 61. Nd3 {[%clk 0:00:02]}  Kxd3 {[%clk 0:00:42]} 0-1


[Site "https://www.chess.com"]

[Event "Titled Tuesday Blitz April 11 Early 2023"]
[White "Trifan, Andrei Ioan"]
[Black "Makhnev, Denis"]
[WhiteFideId "12967068"]
[BlackFideId "13707647"]
[WhiteElo "2208"]
[BlackElo "2515"]
[Result "1/2-1/2"]
[Round "04"]
[TimeControl "180+2"]
[Date "2023.04.11"]
[WhiteClock "0:02:27"]
[BlackClock "0:02:00"]

1. e4 {[%clk 0:02:59]}  c6 {[%clk 0:02:59]} 2. d4 {[%clk 0:02:57]}  d5 {[%clk 0:03:00]} 3. exd5 {[%clk 0:02:57]}  cxd5 {[%clk 0:03:00]} 4. c4 {[%clk 0:02:58]}  Nf6 {[%clk 0:03:00]} 5. Nc3 {[%clk 0:02:57]}  Nc6 {[%clk 0:03:00]} 6. Nf3 {[%clk 0:02:56]}  Bg4 {[%clk 0:02:59]} 7. cxd5 {[%clk 0:02:55]}  Nxd5 {[%clk 0:02:58]} 8. Qb3 {[%clk 0:02:51]}  Bxf3 {[%clk 0:02:58]} 9. gxf3 {[%clk 0:02:51]}  e6 {[%clk 0:02:57]} 10. Qxb7 {[%clk 0:02:50]}  Nxd4 {[%clk 0:02:57]} 11. Bb5+ {[%clk 0:02:49]}  Nxb5 {[%clk 0:02:56]} 12. Qc6+ {[%clk 0:02:48]}  Ke7 {[%clk 0:02:56]} 13. Qxb5 {[%clk 0:02:47]}  Qd7 {[%clk 0:02:56]} 14. Nxd5+ {[%clk 0:02:44]}  Qxd5 {[%clk 0:02:57]} 15. Bg5+ {[%clk 0:02:40]}  f6 {[%clk 0:02:56]} 16. Qxd5 {[%clk 0:02:39]}  exd5 {[%clk 0:02:57]} 17. Be3 {[%clk 0:02:40]}  Ke6 {[%clk 0:02:56]} 18. O-O-O {[%clk 0:02:37]}  Bb4 {[%clk 0:02:56]} 19. Bd2 {[%clk 0:02:32]}  Rac8+ {[%clk 0:02:48]} 20. Kb1 {[%clk 0:02:32]}  Bxd2 {[%clk 0:02:45]} 21. Rxd2 {[%clk 0:02:33]}  Rhd8 {[%clk 0:02:02]} 22. Re1+ {[%clk 0:02:29]}  Kf7 {[%clk 0:02:01]} 23. Red1 {[%clk 0:02:29]}  Ke6 {[%clk 0:02:00]} 24. Re1+ {[%clk 0:02:28]}  Kf7 {[%clk 0:02:00]} 25. Red1 {[%clk 0:02:28]}  Ke6 {[%clk 0:02:00]} 26. Re1+ {[%clk 0:02:27]} 1/2-1/2


[Site "https://www.chess.com"]

[Event "Titled Tuesday Blitz April 11 Early 2023"]
[White "Gogolev, Artem"]
[Black "Iskusnyh, Sergei"]
[WhiteFideId "4116615"]
[BlackFideId "4120027"]
[WhiteElo "2182"]
[BlackElo "2492"]
[Result "0-1"]
[Round "04"]
[TimeControl "180+2"]
[Date "2023.04.11"]
[WhiteClock "0:00:35"]
[BlackClock "0:00:49"]

1. d4 {[%clk 0:03:00]}  d5 {[%clk 0:02:59]} 2. c4 {[%clk 0:03:01]}  c6 {[%clk 0:02:58]} 3. Nf3 {[%clk 0:03:01]}  Nf6 {[%clk 0:02:58]} 4. g3 {[%clk 0:03:01]}  Bf5 {[%clk 0:02:55]} 5. Bg2 {[%clk 0:02:59]}  e6 {[%clk 0:02:54]} 6. Qb3 {[%clk 0:02:58]}  Qb6 {[%clk 0:02:51]} 7. c5 {[%clk 0:02:58]}  Qa6 {[%clk 0:02:48]} 8. Bf1 {[%clk 0:02:43]}  Ne4 {[%clk 0:02:28]} 9. Nc3 {[%clk 0:02:29]}  b6 {[%clk 0:02:22]} 10. cxb6 {[%clk 0:02:00]}  axb6 {[%clk 0:02:18]} 11. Nh4 {[%clk 0:01:56]}  Nd7 {[%clk 0:02:02]} 12. f3 {[%clk 0:01:56]}  Nxc3 {[%clk 0:02:00]} 13. bxc3 {[%clk 0:01:56]}  Bg6 {[%clk 0:01:51]} 14. a4 {[%clk 0:01:47]}  Be7 {[%clk 0:01:40]} 15. Nxg6 {[%clk 0:01:46]}  hxg6 {[%clk 0:01:39]} 16. e4 {[%clk 0:01:45]}  Qa7 {[%clk 0:01:31]} 17. Be3 {[%clk 0:01:37]}  O-O {[%clk 0:01:13]} 18. h4 {[%clk 0:01:29]}  dxe4 {[%clk 0:01:09]} 19. fxe4 {[%clk 0:01:29]}  Nf6 {[%clk 0:01:09]} 20. h5 {[%clk 0:01:09]}  gxh5 {[%clk 0:01:00]} 21. Bg5 {[%clk 0:01:00]}  Nxe4 {[%clk 0:00:58]} 22. Bxe7 {[%clk 0:01:00]}  Qxe7 {[%clk 0:00:57]} 23. Rxh5 {[%clk 0:00:57]}  Nxg3 {[%clk 0:00:55]} 24. Rh3 {[%clk 0:00:56]}  Qg5 {[%clk 0:00:55]} 25. Kf2 {[%clk 0:00:45]}  Ne4+ {[%clk 0:00:50]} 26. Kf3 {[%clk 0:00:35]}  Nd2+ {[%clk 0:00:49]} 0-1


[Site "https://www.chess.com"]